[Event "GER-ch Youth-U18 2022"]
[Site "Willingen"]
[Date "2022.06.09"]
[Round "7.4"]
[White "von Mettenheim, Johannes"]
[Black "Dobrikov, Marco"]
[Result "1-0"]
[ECO "E73"]
[WhiteElo "2176"]
[BlackElo "2234"]
[Annotator "TA"]
[PlyCount "96"]
[EventDate "2022.06.05"]
[EventType "swiss"]
[EventRounds "9"]
[EventCountry "GER"]
[SourceTitle "playchess.com"]
[Source "ChessBase"]
[SourceQuality "1"]
[TimeControl "40/4500+30:900+30"]

{[%evp 18,96,0,2,17,-27,72,-14,12,-112,-124,-128,-120,-112,-107,-104,-68,-88,-75,-56,-68,-126,-110,-169,-150,-126,-146,-179,-124,-132,-111,-125,-103,-134,-131,-213,-187,-176,-160,-436,-420,-751,-694,-29987,-29988,-29989,-170,-160,179,167,531,-389,-338,-29978,-541,-29988,-515,-483,0,0,0,-474,0,0,0,0,0,-29966,-29965,-1676,15,22,29976,29977,29976,29977,29977,29978,29978,29979,29974]} 1. d4 {[%emt 0:00:00]} Nf6 {[%emt 0:00:00]} 2. c4 {[%emt 0:00:00]} g6 {[%emt 0:00:00]} 3. Nc3 {[%emt 0:00:00]} Bg7 {[%emt 0:00:00]} 4. e4 {[%emt 0:00:00]} d6 {[%emt 0:00:00]} 5. Be2 {[%emt 0:00:00]} O-O {[%emt 0:00:00]} 6. Bg5 {[%emt 0:00:00]} Na6 {[%emt 0:00:00]} 7. Qd2 {[%emt 0:00:00]} e5 {[%emt 0:00:00]} 8. d5 {[%emt 0:00:00]} Qe8 {[%emt 0:00:00]} 9. h4 {[%emt 0:00:00][%cal Bh2h4,Bh4h5][%mdl 32]} Nc5 {[%emt 0:00:00]} 10. Bf3 {[%emt 0:00:00]} a5 {[%emt 0:00:00] E73: King's Indian: Averbakh Variation without 6...c5.} 11. h5 {[%emt 0:00:00] [#]} c6 $146 {[%emt 0:12:38]} (11... gxh5 12. Nge2 Ng4 13. Bxg4 (13. Rxh5 f6 $17) 13... Bxg4 14. Be3 $14) (11... Nxh5 $11 {keeps the balance.} 12. Bxh5 gxh5) ({Predecessor:} 11... Bg4 12. Bxf6 Bxf3 13. Bxg7 Kxg7 14. hxg6 hxg6 15. Nxf3 Rh8 16. O-O-O a4 17. Rh2 Qd7 18. Rdh1 Rxh2 19. Rxh2 Qg4 20. Qh6+ Kf6 21. Qh4+ Qxh4 22. Rxh4 Nd3+ 23. Kc2 Nxf2 24. Kd2 {1-0 (24) Laflamme,S (1948)-Oliver,V (1499) Ste Foy 2018}) 12. Nh3 {[%emt 0:06:06]} (12. Nge2 $16) 12... cxd5 {[%emt 0:01:41][%cal Rf6e4] The position is equal.} (12... gxh5 13. Bh6 Nd3+ 14. Ke2 Nf4+ 15. Nxf4 (15. Bxf4 exf4 16. Nxf4 Bg4 $14) 15... exf4 16. Bxg7 (16. Bxf4 cxd5 17. Nxd5 Nxe4 $14) (16. Qxf4 Qe5 $16) 16... Kxg7 17. Qxf4 $16) 13. cxd5 {[%emt 0:10:14]} (13. Bxf6 $11 Bxf6 14. Nxd5) 13... b5 $1 $17 {[%emt 0:04:28] Hoping for ...b4.} (13... gxh5 14. Bh6 Nd3+ 15. Ke2 Nf4+ 16. Nxf4 (16. Bxf4 exf4 17. Kf1 b5 $11) 16... exf4 17. Bxg7 (17. Bxf4 b5 $11) (17. Qxf4 Bxh6 18. Qxf6 Bg7 $16) 17... Kxg7 18. Qxf4 $16) 14. Bxf6 {[%emt 0:04:11]} Bxf6 {[%emt 0:00:01]} 15. Ne2 {[%emt 0:07:56]} Qe7 {[%emt 0:10:27]} 16. Nc1 {[%emt 0:01:15]} Bxh3 {[%emt 0:04:13]} 17. Rxh3 {[%emt 0:00:22]} Bg5 {[%emt 0:00:04]} 18. Qe2 {[%emt 0:00:10]} Rac8 {[%emt 0:06:08][%cal Ba8c8,Bc8b8,Bb8b4][%mdl 32] Threatens to win with ...Bxc1.} 19. Kf1 {[%emt 0:09:59]} (19. Nd3 $15) 19... Nxe4 {[%emt 0:09:59]} 20. Nb3 {[%emt 0:00:26] Prevents Nd2+.} (20. Bxe4 $17 Bxc1 21. hxg6 fxg6 22. Rf3) 20... Nc5 {[%emt 0:01:49]} 21. Qxb5 {[%emt 0:10:39]} Rb8 {[%emt 0:05:01]} 22. Qc4 {[%emt 0:01:26]} Nxb3 {[%emt 0:00:56]} (22... Rfc8 $19 {Strongly threatening ...Nxb3.} 23. Nxa5 Rxb2) 23. axb3 {[%emt 0:00:05]} Rfc8 {[%emt 0:00:30]} 24. Qd3 {[%emt 0:05:09]} Rb4 {[%emt 0:00:40]} 25. hxg6 {[%emt 0:03:10]} hxg6 {[%emt 0:01:10]} 26. Be2 {[%emt 0:02:09]} (26. Be4 $17) 26... Kg7 {[%emt 0:03:29]} 27. Qa6 {[%emt 0:06:37]} Rc2 {[%emt 0:03:07]} 28. Bc4 $2 {[%emt 0:02:13]} (28. Qa8 $2 Rh4 29. Qa6 e4 30. Rxh4 Bxh4 $19) (28. Qxa5 $17 Rd4 29. Bd3 (29. Qa8 $2 Rh4 $19)) 28... e4 $19 {[%emt 0:01:54]} (28... Qf6 29. Rf3 Qe7 30. Qc8 $17) 29. Kg1 {[%emt 0:00:15]} (29. Qc8 $142 Bh4 30. Qg4 (30. g3 $2 Qf6 $19) 30... Bxf2 31. Qf4) 29... e3 {[%emt 0:02:28]} (29... Qf6 30. Rf1 $17) 30. fxe3 {[%emt 0:02:33]} Bxe3+ {[%emt 0:00:06]} 31. Kh1 {[%emt 0:00:23]} Qe4 $2 {[%emt 0:00:47]} (31... Qg5 {mates} 32. Rh2 Bf4 33. Qc8 Bxh2 34. Qh3 Bg3 35. Rf1 Rb8 36. Rxf7+ Kxf7 37. Bf1 Qf4 38. Qh7+ Kf6 39. Qxg6+ Kxg6 40. Bd3+ Kg5 41. Kg1 Bf2+ 42. Kh1 Qh4#) 32. Bf1 {[%emt 0:02:00] [#]} Rxb2 $2 (32... Qxd5 $1 $17 {stays on course.} 33. Rxa5 (33. Rxe3 Rh4+ 34. Kg1 Rg4) (33. Qxa5 Qxa5) 33... Qe4) 33. Qa8 $36 {[%emt 0:02:39][%csl Gh3][%cal Ra8h8][%mdl 2048] White is on the roll. Dancing on a razor blade.} Qh4 {[%emt 0:08:45] Inhibits Qh8+.} (33... Bh6 {is more resistant.} 34. Rxh6 (34. Rxa5 {leads to mate.} Rxg2) 34... Kxh6 35. Qh8+ Kg5 36. Qxb2 Qe3) 34. Re1 $4 {[%emt 0:02:16][%mdl 8192]} Bb6 {[%emt 0:02:15][%cal Ob2b3]} 35. Re8 $2 {[%emt 0:06:31]} (35. g3 $19 Qd8 36. Qxd8 Bxd8 37. g4) 35... Qf2 {[%emt 0:03:24]} (35... Rb1 $142 36. Rg8+ Kf6 37. Rxg6+ Kxg6 38. Qa6 Qf2 39. Qd3+ f5 40. Qg3+ Qxg3 41. Rxg3+ Kh5 42. Rh3+ Rh4 43. g4+ fxg4 44. Rxh4+ Kxh4 45. Kg2 Rc1 46. b4 axb4 47. Kh1 Rxf1+ 48. Kh2 b3 49. Kg2 Rg1+ 50. Kh2 g3#) 36. Rg8+ $19 {[%emt 0:01:45]} Kf6 {[%emt 0:00:01][%csl Gb6][%cal Rf2g1]} 37. Rxg6+ {[%emt 0:01:35]} fxg6 $2 {[%emt 0:01:40]} (37... Kxg6 $19 {[%csl Gb6][%cal Rf2g1]} 38. Qg8+ Kf6 39. Rf3+ Qxf3 $3 {[%mdl 512]} 40. Qh8+ Ke7 41. gxf3 R2xb3) 38. Qf8+ $1 $11 {[%emt 0:01:33]} Ke5 {[%emt 0:00:38][%csl Gb6][%cal Rf2g1]} 39. Qe7+ $2 {[%emt 0:00:25][%mdl 8192]} (39. Qe8+ $11 {and White is okay.} Kf5 40. Qe6+ (40. Bd3+ Kf4 $11) 40... Kg5 41. Qe7+ Kg4 42. Qe6+ Kg5 43. Qe7+ Kg4 44. Qe6+ Kg5) 39... Kxd5 $2 {[%emt 0:01:29]} (39... Kd4 $1 $19 40. Rf3 Qxf3 $1 41. gxf3 Kc3) 40. Qb7+ $1 {[%emt 0:00:05]} Ke6 {[%emt 0:01:30][%csl Gb6][%cal Rf2g1]} 41. Qc8+ {[%emt 0:15:59]} Ke7 {[%emt 0:00:00][%csl Gb6][%cal Rf2g1]} 42. Qb7+ $2 {[%emt 0:00:00][%mdl 8192] [#]} (42. Rh7+ $11 Kf6 43. Qf8+ Ke5 44. Re7+ Kd5 45. Qa8+ Kd4 46. Qh8+ Kd5 47. Qa8+ Kd4 48. Qh8+ Kd5 49. Qa8+) 42... Kf6 $1 {[%emt 0:00:00][%csl Gb6][%cal Rf2g1]} ({And not} 42... Ke6 43. Qc8+ Kf7 44. Rh7+ Kf6 45. Qf8+ Ke5 46. Re7+ Kd5 47. Qg8+ Kc5 48. Qc8+ Kd5 49. Qg8+ Kd4 50. Qh8+ Kd5 51. Qg8+ $11) 43. Rf3+ {[%emt 0:00:00] [#]} Kg5 $2 {[%emt 0:00:00]} (43... Rf4 $1 $19 {[%csl Gb6][%cal Rf2g1]} 44. Rxf2 Bxf2) 44. Qe7+ {[%emt 0:00:00]} Kh6 $2 {[%emt 0:00:00][%mdl 8192] A mistake that costs the game.} (44... Kh5 $11 45. Qh7+ Kg5 46. Qe7+ Kh5 47. Rxf2 Rxf2 48. Be2+ Kh6) 45. Rh3+ {[%emt 0:00:00] White mates.} Rh4 {[%emt 0:00:00]} 46. Rxh4+ {[%emt 0:00:00]} Qxh4+ {[%emt 0:00:00]} 47. Qxh4+ {[%emt 0:00:00]} Kg7 {[%emt 0:00:00]} 48. Qe7+ {[%emt 0:00:00]} Kh6 {[%emt 0:00:00] Weighted Error Value: White=1.06/Black=1.19} 1-0

[Event "GER-ch Youth-U18 2022"]
[Site "Willingen"]
[Date "2022.06.09"]
[Round "7.5"]
[White "Weidemann, Jakob"]
[Black "Musiolik, David"]
[Result "0-1"]
[ECO "C03"]
[WhiteElo "2047"]
[BlackElo "2220"]
[Annotator "TA"]
[PlyCount "62"]
[EventDate "2022.06.05"]
[EventType "swiss"]
[EventRounds "9"]
[EventCountry "GER"]
[SourceTitle "playchess.com"]
[Source "ChessBase"]
[SourceQuality "1"]
[TimeControl "40/4500+30:900+30"]

{[%evp 9,62,-11,-13,-29,-21,-44,-51,-56,-36,-70,-75,-82,-77,-72,-43,-35,-44,-82,-80,-75,-75,-92,-104,-109,-105,-131,-138,-112,-84,-154,-158,-240,-250,-298,-292,-527,-527,-524,-513,-498,-438,-495,-505,-1204,-990,-827,-811,-1481,-1048,-921,-1042,-985,-981,-816,-629]} 1. e4 {[%emt 0:00:00]} e6 {[%emt 0:00:00]} 2. d4 {[%emt 0:00:00]} d5 {[%emt 0:00:00]} 3. Nd2 {[%emt 0:00:00]} Be7 {[%emt 0:00:00]} 4. Bd3 {[%emt 0:00:00]} c5 {[%emt 0:00:00]} 5. exd5 {[%emt 0:00:00]} Qxd5 {[%emt 0:00:00]} 6. Ngf3 {[%emt 0:00:50] C03: French Tarrasch: Unusual Black 3rd moves.} cxd4 {[%emt 0:00:00]} 7. Be4 {[%emt 0:08:06]} Qd6 {[%emt 0:00:00] [#]} 8. Qe2 $146 {[%emt 0:00:54] Black is slightly better.} ({Predecessor:} 8. O-O Nf6 9. Re1 Nc6 10. Bxc6+ bxc6 11. Nc4 Qd5 12. Qxd4 c5 13. Qc3 O-O 14. Ne3 {½-½ (50) Martinez Gamiz,M (1899)-Lopez Santana,O (2119) Barcelona 2022}) 8... Nf6 {[%emt 0:00:00]} 9. Qc4 {[%emt 0:07:50]} O-O {[%emt 0:20:35]} 10. Nxd4 {[%emt 0:06:38]} Nxe4 {[%emt 0:01:09]} 11. Nxe4 {[%emt 0:00:11]} Qa6 {[%emt 0:01:12]} (11... Qd8 {is more complex.} 12. Nf3 e5 13. O-O Nc6) 12. Qxa6 {[%emt 0:11:51]} Nxa6 {[%emt 0:00:06][%cal Bb8a6,Ba6b4,Bb4d3][%mdl 32]} 13. f4 {[%emt 0:00:59]} b6 {[%emt 0:03:10]} 14. O-O {[%emt 0:04:27]} Bb7 {[%emt 0:02:34] Against Nc6} 15. Re1 {[%emt 0:00:37]} Rfd8 {[%emt 0:02:00]} 16. c3 {[%emt 0:00:22] [#]} Nb4 $1 $36 {[%emt 0:05:18][%cal Od8d4][%mdl 2560] Strongly threatening ...Rxd4! Black is on the roll.} 17. Re2 {[%emt 0:09:30] [#]} (17. Nf2 Rxd4) 17... Rac8 $1 {[%emt 0:04:06][%cal Od8d4]} 18. Bd2 {[%emt 0:03:43]} Ba6 {[%emt 0:01:09] This bishop pair is nice.} 19. Re3 {[%emt 0:02:47]} (19. Ree1 $142) 19... Nd3 $17 {[%emt 0:01:03]} 20. f5 {[%emt 0:02:20]} (20. Rg3 $17 {was worth a try.}) 20... e5 $19 {[%emt 0:01:28][%cal Be6e5,Be5d4,Bd4c3][%mdl 32]} ({And not} 20... Nxb2 21. fxe6 fxe6 22. Nxe6 $17) 21. f6 {[%emt 0:04:59]} exd4 {[%emt 0:01:03]} ({Not} 21... Bxf6 22. Nf5 $17) 22. Rg3 {[%emt 0:00:35]} (22. Rxd3 Bxd3 23. fxe7) 22... Bf8 {[%emt 0:13:05] Black is clearly winning.} 23. fxg7 {[%emt 0:00:13][%cal Re4f6]} Be7 {[%emt 0:00:45] Inhibits Nf6+.} ({Weaker is} 23... Bxg7 24. Bh6 Rc6 25. Bxg7 $14) 24. Bg5 {[%emt 0:01:09]} Nc5 {[%emt 0:00:42]} 25. Nxc5 {[%emt 0:06:44]} Bxc5 {[%emt 0:00:45]} 26. Bxd8 {[%emt 0:01:48]} (26. b4 $142 Bd6 27. cxd4 Bxg3 28. Bxd8) 26... dxc3+ {[%emt 0:00:05]} 27. Kh1 {[%emt 0:00:10]} cxb2 {[%emt 0:00:17][%cal Rb2a1]} 28. Rd1 {[%emt 0:01:48]} Be2 {[%emt 0:00:37]} 29. Bf6 {[%emt 0:02:44]} Bxd1 {[%emt 0:00:40]} 30. Bxb2 {[%emt 0:00:19]} Re8 {[%emt 0:00:18][%cal Re8e1]} 31. Bc3 {[%emt 0:00:26] Inhibits Re1+.} Re3 {[%emt 0:00:20] Weighted Error Value: White=0.63/Black=0.27 (precise)} 0-1

[Event "GER-ch Youth-U18 2022"]
[Site "Willingen"]
[Date "2022.06.09"]
[Round "7.6"]
[White "Colbow, Collin"]
[Black "Chen, Qingzhi Alexander"]
[Result "1-0"]
[ECO "B07"]
[WhiteElo "2360"]
[BlackElo "1879"]
[Annotator "TA"]
[PlyCount "87"]
[EventDate "2022.06.05"]
[EventType "swiss"]
[EventRounds "9"]
[EventCountry "GER"]
[SourceTitle "playchess.com"]
[Source "ChessBase"]
[SourceQuality "1"]
[TimeControl "40/4500+30:900+30"]

{[%evp 11,86,26,36,29,37,43,70,73,116,120,150,120,129,74,92,99,165,157,164,145,158,144,167,133,162,155,172,167,179,175,189,171,198,190,232,202,251,227,233,173,425,416,409,398,371,362,344,298,441,456,558,504,481,472,766,660,1155,897,29970,29972,6503,6443,29984,1597,29985,29986,29989,29990,29989,29990,29985,29986,29996,29997,29998,29999,29999]} 1. e4 {[%emt 0:00:00]} d6 {[%emt 0:00:00]} 2. d4 {[%emt 0:00:00][%cal Bd2d4,Bd4d5][%mdl 32]} Nf6 {[%emt 0:00:00]} 3. Nc3 {[%emt 0:00:00]} g6 {[%emt 0:00:00]} 4. g3 {[%emt 0:00:00]} Bg7 {[%emt 0:00:00]} 5. Bg2 {[%emt 0:00:00]} Nc6 {[%emt 0:00:00]} 6. Nge2 {[%emt 0:00:00]} O-O {[%emt 0:00:00]} 7. d5 {[%emt 0:00:00] B07: Pirc Defence: Miscellaneous Systems.} Nb8 {[%emt 0:00:00]} 8. h3 {[%emt 0:06:30]} c5 {[%emt 0:00:00] [#]} 9. Be3 $146 {[%emt 0:01:17] White is slightly better.} ({Predecessor:} 9. O-O Na6 10. Be3 Rb8 11. a4 Nd7 12. Qd2 Ne5 13. Qd1 Nc4 14. Bc1 Nb4 15. b3 {0-1 (59) Rengarajan,S (2156)-Deepan Chakkravarthy,J (2476) Bhopal 2013}) 9... b5 {[%emt 0:20:46]} 10. Nxb5 {[%emt 0:05:13]} Ba6 {[%emt 0:01:06]} 11. Nbc3 {[%emt 0:19:24] White is more active.} Nfd7 {[%emt 0:07:27]} 12. O-O {[%emt 0:06:00]} (12. a4 $142) 12... Qb6 {[%emt 0:09:13]} 13. Rb1 {[%emt 0:06:07]} Bxe2 {[%emt 0:04:47]} (13... Bxc3 $16 14. bxc3 Qa5) 14. Qxe2 {[%emt 0:05:14]} Na6 {[%emt 0:02:10]} 15. Nd1 {[%emt 0:01:58]} Rab8 {[%emt 0:04:53]} 16. f4 {[%emt 0:02:14]} Qb5 {[%emt 0:04:15]} 17. Bf3 {[%emt 0:02:05]} Nc7 {[%emt 0:06:41]} 18. c4 {[%emt 0:04:19]} Qa5 {[%emt 0:01:26]} 19. b3 {[%emt 0:00:16]} Na6 {[%emt 0:01:34]} 20. Rf2 {[%emt 0:05:28]} Nb4 {[%emt 0:02:35]} 21. Kh2 {[%emt 0:02:03]} Rb6 {[%emt 0:02:07]} 22. Bc1 {[%emt 0:00:17]} Rfb8 {[%emt 0:00:35]} 23. Bg4 {[%emt 0:01:55]} R6b7 {[%emt 0:03:26]} 24. Bxd7 {[%emt 0:06:13]} Rxd7 {[%emt 0:00:07]} 25. e5 {[%emt 0:00:12]} Qc7 $2 {[%emt 0:00:45]} (25... e6 {keeps fighting.}) 26. a3 $18 {[%emt 0:03:49]} Na6 {[%emt 0:02:41]} 27. e6 {[%emt 0:00:05]} fxe6 {[%emt 0:00:31]} 28. Qxe6+ {[%emt 0:00:16]} Kh8 {[%emt 0:00:15]} 29. Bb2 {[%emt 0:00:09]} Rf8 {[%emt 0:01:16]} (29... Bxb2 $142 30. Rbxb2 Qc8) 30. f5 {[%emt 0:00:55][%cal Bf4f5,Bf5g6][%mdl 32]} Qd8 {[%emt 0:06:56]} 31. fxg6 {[%emt 0:01:23]} Rxf2+ {[%emt 0:00:54]} 32. Nxf2 {[%emt 0:00:01] [#] Intending Bxg7+ and mate.} Qf8 {[%emt 0:00:19]} (32... Bxb2 $142 33. Rxb2 Nc7) 33. Ng4 {[%emt 0:02:53]} Rc7 {[%emt 0:02:18]} 34. gxh7 {[%emt 0:00:35][%cal Ob1f1] White wants to mate with Rf1!} Kxh7 {[%emt 0:00:13]} 35. Bxg7 {[%emt 0:00:39]} Kxg7 {[%emt 0:00:40]} 36. Rb2 {[%emt 0:02:16][%cal Bb1b2,Bb2f2,Bf2f7][%mdl 32] [#] White threatens Rf2 and mate.} Qf7 {[%emt 0:01:05]} 37. Qh6+ {[%emt 0:00:10]} Kg8 {[%emt 0:00:04]} 38. Rf2 {[%emt 0:00:07] White mates.} Qg7 {[%emt 0:00:08]} 39. Qe6+ {[%emt 0:00:16]} Kh8 {[%emt 0:00:04]} 40. Rf7 {[%emt 0:01:54]} Qb2+ {[%emt 0:00:42]} 41. Nf2 {[%emt 0:15:20]} Qd2 {[%emt 0:15:53]} 42. Rf8+ {[%emt 0:00:28]} Kg7 {[%emt 0:00:03]} 43. Rg8+ {[%emt 0:00:06]} Kh7 {[%emt 0:00:07]} 44. Qg6# {Weighted Error Value: White=0.15 (very precise) /Black=0.82} 1-0

[Event "GER-ch Youth-U18 2022"]
[Site "Willingen"]
[Date "2022.06.09"]
[Round "7.7"]
[White "Geltz, Noah"]
[Black "Hinrichs, Paul"]
[Result "1-0"]
[ECO "C44"]
[WhiteElo "2156"]
[BlackElo "2244"]
[Annotator "TA"]
[PlyCount "63"]
[EventDate "2022.06.05"]
[EventType "swiss"]
[EventRounds "9"]
[EventCountry "GER"]
[SourceTitle "playchess.com"]
[Source "ChessBase"]
[SourceQuality "1"]
[TimeControl "40/4500+30:900+30"]

{[%evp 12,63,33,37,29,45,31,29,61,57,43,44,60,50,74,79,93,96,96,88,108,90,81,83,149,153,207,201,275,284,289,293,295,271,356,300,346,289,360,248,259,258,275,268,248,240,378,379,350,265,502,502,1534,1462]} 1. e4 {[%emt 0:00:00]} e5 {[%emt 0:00:00]} 2. Nf3 {[%emt 0:00:00][%cal Bg1f3,Bf3d4,Bd4f5][%mdl 32]} Nc6 {[%emt 0:00:00]} 3. d4 {[%emt 0:00:00]} exd4 {[%emt 0:00:00]} 4. Nxd4 {[%emt 0:00:00]} Bb4+ {[%emt 0:00:00]} 5. c3 {[%emt 0:00:00]} Bc5 {[%emt 0:00:00]} 6. Be3 {[%emt 0:00:00]} Bb6 {[%emt 0:00:00]} 7. Nf5 {[%emt 0:00:00]} g6 {[%emt 0:00:00] C45: Scotch Game.} 8. Bxb6 $1 {[%emt 0:00:00]} axb6 {[%emt 0:00:00]} 9. Ne3 {[%emt 0:00:00]} d6 {[%emt 0:00:00] [#] White has an edge.} 10. Bd3 $146 {[%emt 0:00:00]} ({Predecessor:} 10. c4 Nge7 11. Nc3 O-O 12. h4 f5 13. h5 g5 14. h6 f4 15. Nc2 Ne5 16. Qd2 {1-0 (43) Xiong,J (2672)-Postny,E (2623) Chess.com INT 2019}) 10... Nf6 {[%emt 0:00:00]} 11. c4 {[%emt 0:00:00] Against d5} Nb4 {[%emt 0:00:00]} 12. Nc3 {[%emt 0:00:00]} Nxd3+ {[%emt 0:00:00]} 13. Qxd3 {[%emt 0:00:00] White leaves nothing to chance now.} O-O {[%emt 0:00:00]} 14. O-O {[%emt 0:00:00]} Bd7 {[%emt 0:06:00]} 15. Qd4 {[%emt 0:11:04]} Bc6 {[%emt 0:01:25]} 16. Rae1 {[%emt 0:05:10]} Re8 {[%emt 0:01:32][%cal Rc6e4]} 17. f3 {[%emt 0:05:19]} Nd7 {[%emt 0:04:36] [#]} (17... Qe7 $142) 18. b4 $1 $16 {[%emt 0:03:33] White is more active.} Qf6 {[%emt 0:01:07] [#]} (18... Nf6 $16 19. Rf2 Bd7) 19. Qd2 $1 $18 {[%emt 0:08:06]} Ne5 {[%emt 0:18:55]} 20. b5 {[%emt 0:07:27]} Ra3 {[%emt 0:09:08][%cal Oa3c3]} 21. bxc6 {[%emt 0:03:45]} bxc6 {[%emt 0:00:12][%cal Oa3c3]} 22. Rc1 {[%emt 0:01:42]} Rea8 {[%emt 0:00:55]} 23. Kh1 {[%emt 0:01:19]} Qe6 {[%emt 0:00:49]} 24. Qe2 {[%emt 0:01:53]} Qf6 {[%emt 0:01:21]} 25. Rc2 {[%emt 0:10:35]} Nd7 {[%emt 0:00:56]} 26. Qd2 {[%emt 0:00:57]} Nc5 {[%emt 0:00:19]} 27. Ng4 {[%emt 0:04:13]} Qg7 {[%emt 0:00:08]} 28. Re1 {[%emt 0:08:04] aiming for e5.} Re8 {[%emt 0:00:40]} (28... h5 $142) 29. e5 {[%emt 0:01:00]} dxe5 {[%emt 0:00:28]} 30. Rxe5 {[%emt 0:01:08]} Ne6 $2 {[%emt 0:00:12]} (30... Raa8) 31. Ne4 {[%emt 0:01:26] Black must now prevent Nef6+.} Rd8 {[%emt 0:00:17]} (31... Kh8 $142 32. Ngf6 Raa8) 32. Nef6+ {[%emt 0:00:19] Weighted Error Value: White=0.12 (very precise) /Black=0.42} 1-0

[Event "GER-ch Youth-U18 2022"]
[Site "Willingen"]
[Date "2022.06.09"]
[Round "7.8"]
[White "Jeschke, Jan"]
[Black "Weihrauch, Jakob"]
[Result "1/2-1/2"]
[ECO "B21"]
[WhiteElo "2130"]
[BlackElo "2139"]
[Annotator "TA"]
[PlyCount "100"]
[EventDate "2022.06.05"]
[EventType "swiss"]
[EventRounds "9"]
[EventCountry "GER"]
[SourceTitle "playchess.com"]
[Source "ChessBase"]
[SourceQuality "1"]
[TimeControl "40/4500+30:900+30"]

{[%evp 12,100,-36,-39,-23,-25,-32,-59,-59,-41,-21,-70,-67,-79,-69,-74,-81,-231,-239,-239,-238,-313,24,19,172,141,264,187,189,176,160,0,0,0,0,0,0,-16,-17,-15,-15,-18,-12,-16,0,0,0,0,0,0,0,0,0,0,0,-45,0,0,0,0,0,0,0,0,0,0,0,0,0,0,0,0,0,0,0,0,0,0,0,0,0,0,0,0,0,0,0,0,0,0,0]} 1. e4 {[%emt 0:00:00]} c5 {[%emt 0:00:00]} 2. d4 {[%emt 0:00:00]} cxd4 {[%emt 0:00:00]} 3. c3 {[%emt 0:00:00]} dxc3 {[%emt 0:00:00]} 4. Nxc3 {[%emt 0:00:00]} Nc6 {[%emt 0:00:00]} 5. Nf3 {[%emt 0:00:00]} e6 {[%emt 0:00:00]} 6. Bc4 {[%emt 0:00:00]} a6 {[%emt 0:00:00]} 7. O-O {[%emt 0:00:00]} b5 {[%emt 0:00:00] B21: Sicilian: 2 f4 and Morra Gambit.} 8. Bd3 {[%emt 0:00:00]} Bb7 {[%emt 0:00:00]} 9. Re1 {[%emt 0:00:30] [#]} d6 $146 {[%emt 0:00:00] Black is slightly better.} ({Predecessor:} 9... Nge7 10. Bf4 Nb4 11. Bf1 Ng6 12. Bg3 Nc6 13. Rc1 Na5 14. Nd5 Bxd5 15. Bc7 Qf6 16. exd5 {½-½ (32) Seliokaite,A (1165)-Goetz,T (1385) Willingen 2017}) 10. Be3 {[%emt 0:24:26]} Nf6 {[%emt 0:08:19]} 11. Qe2 {[%emt 0:19:16]} (11. Rc1 $11 {feels stronger.}) 11... Be7 $15 {[%emt 0:05:50]} 12. Rad1 {[%emt 0:00:19]} Qb8 {[%emt 0:09:31]} 13. a4 {[%emt 0:21:31]} b4 {[%emt 0:01:06]} 14. Nd5 {[%emt 0:00:42]} exd5 $19 {[%emt 0:02:27]} 15. exd5 {[%emt 0:00:07]} Nxd5 {[%emt 0:22:26]} 16. Bg5 {[%emt 0:03:34]} Kf8 $2 {[%emt 0:12:41]} (16... O-O $19 17. Qe4 g6 $1 18. Qxd5 Ne5 $1) 17. Be4 $1 $11 {[%emt 0:01:25]} Bxg5 $2 {[%emt 0:12:16]} (17... h6 $11 18. Bc1 Nf6 19. Bxc6 Bxc6 20. Qxe7+ Kg8) 18. Nxg5 $18 {[%emt 0:00:06]} Nce7 {[%emt 0:07:25]} (18... Ne5 $16 {is a better defense.}) 19. Qf3 {[%emt 0:09:37][%csl Gg5][%cal Rf3f7]} Nf6 {[%emt 0:00:04] aiming for ...d5.} (19... f6 $2 20. Rxd5 Ra7 21. Rd4 Bxe4 22. Nxe4 $18) 20. Bxb7 Ra7 {[#]} 21. Qb3 $2 {[%emt 0:02:51] 0x0.002ac30e2aaadp-1022s more active pieces. The black rooks are badly placed.} d5 $1 $36 {[%emt 0:00:53][%mdl 2048] Black is pushing.} 22. Rxe7 {[%emt 0:00:51]} Rxb7 {[%emt 0:02:15]} 23. Rxb7 {[%emt 0:00:04]} Qxb7 {[%emt 0:00:01]} 24. a5 {[%emt 0:00:30]} g6 {[%emt 0:01:36]} 25. Rd4 {[%emt 0:01:09]} Kg7 {[%emt 0:00:04] Black wants to play ...Rc8.} 26. Qxb4 {[%emt 0:00:53]} Rc8 {[%emt 0:00:52] ( -> ...Rc1+)} 27. g3 {[%emt 0:00:36]} Rc1+ {[%emt 0:00:26]} 28. Kg2 {[%emt 0:00:02]} Qxb4 {[%emt 0:00:03]} 29. Rxb4 {[%emt 0:00:08][%mdl 4096] Endgame KRN-KRN} h6 {[%emt 0:00:29]} 30. Nf3 {[%emt 0:00:51]} Ne4 {[%emt 0:00:30]} 31. Nd4 {[%emt 0:00:19] Prevents Rc2.} Rc5 {[%emt 0:01:04]} 32. Rb7 {[%emt 0:01:06] Hoping for Ne6+.} Rxa5 {[%emt 0:00:36]} 33. Ne6+ {[%emt 0:00:04]} Kg8 {[%emt 0:00:31]} 34. Rb8+ {[%emt 0:00:22] The position is equal.} Kh7 {[%emt 0:00:04]} 35. Rb7 {[%emt 0:00:25]} Kg8 {[%emt 0:00:49]} 36. Rb8+ {[%emt 0:00:05]} Kh7 {[%emt 0:00:27]} 37. Rb7 {[%emt 0:00:04]} Nd6 {[%emt 0:00:03]} (37... Kg8 $5 {[%cal Rf7e6]} 38. Rb8+ $11) 38. Rd7 {[%emt 0:00:04]} Rb5 {[%emt 0:00:51]} 39. Nc7 {[%emt 0:01:21]} Rb7 {[%emt 0:00:17]} 40. Nxd5 {[%emt 0:00:10]} Rxd7 {[%emt 0:00:10]} 41. Nf6+ {[%emt 0:15:06]} Kg7 {[%emt 0:15:06]} 42. Nxd7 {[%emt 0:00:04] KN-KN} a5 {[%emt 0:00:00]} 43. f3 {[%emt 0:00:00]} g5 {[%emt 0:00:00]} 44. Kf2 {[%emt 0:00:00]} h5 {[%emt 0:00:00]} 45. Ke2 {[%emt 0:00:00]} Kg6 {[%emt 0:00:00]} 46. Kd3 {[%emt 0:00:00]} Kf5 {[%emt 0:00:00]} 47. Kd4 {[%emt 0:00:00]} g4 {[%emt 0:00:00]} 48. fxg4+ {[%emt 0:00:00]} Kxg4 {[%emt 0:00:00]} 49. Nf6+ {[%emt 0:00:00]} Kg5 {[%emt 0:00:00]} 50. Kc5 {[%emt 0:00:00]} Nb7+ {Quite a comeback for White.  Weighted Error Value: White=0.17 (very precise) /Black=0.32} 1/2-1/2